[Event "*** Titled Tuesday 3|2 Blitz"]
[Site "Chess.com"]
[Date "2017.06.06"]
[Round "9"]
[White "DryCounty"]
[Black "Spartakus1975"]
[Result "0-1"]
[WhiteElo "2472"]
[BlackElo "2592"]
[TimeControl "180+2"]
[EndTime "15:51:44 PDT"]
[Termination "Spartakus1975 won by resignation"]

1. e4 {[%clk 0:02:57.2]} 1... e6 {[%clk 0:03:00.6]} 2. d4 {[%clk 0:02:57.2]}
2... d5 {[%clk 0:03:01.6]} 3. exd5 {[%clk 0:02:58.2]} 3... exd5 {[%clk
0:03:02.1]} 4. Nf3 {[%clk 0:02:59.7]} 4... Nf6 {[%clk 0:02:56.7]} 5. Bg5 {[%clk
0:02:59.2]} 5... Be7 {[%clk 0:02:57.1]} 6. Bd3 {[%clk 0:03:00]} 6... h6 {[%clk
0:02:56.6]} 7. Bh4 {[%clk 0:02:59.2]} 7... Nh5 {[%clk 0:02:57.5]} 8. Bxe7 {[%clk
0:02:48.2]} 8... Qxe7+ {[%clk 0:02:58.3]} 9. Ne5 {[%clk 0:02:44.1]} 9... Nf4
{[%clk 0:02:55.2]} 10. O-O {[%clk 0:02:41.3]} 10... Nxd3 {[%clk 0:02:52]} 11.
Qxd3 {[%clk 0:02:41.3]} 11... O-O {[%clk 0:02:52.8]} 12. Nd2 {[%clk 0:02:32.2]}
12... c6 {[%clk 0:02:40.8]} 13. Rae1 {[%clk 0:02:27.4]} 13... Qc7 {[%clk
0:02:41.2]} 14. Qg3 {[%clk 0:02:25.4]} 14... Bf5 {[%clk 0:02:32.7]} 15. c4
{[%clk 0:02:20.2]} 15... f6 {[%clk 0:02:30.7]} 16. Ng6 {[%clk 0:02:10.4]} 16...
Qxg3 {[%clk 0:02:29.8]} 17. Ne7+ {[%clk 0:02:10.3]} 17... Kh7 {[%clk 0:02:21.5]}
18. fxg3 {[%clk 0:02:10.9]} 18... Bd3 {[%clk 0:02:21.5]} 19. Rf3 {[%clk
0:02:05.8]} 19... dxc4 {[%clk 0:02:22.2]} 20. b3 {[%clk 0:02:01.9]} 20... b5
{[%clk 0:02:22.8]} 21. bxc4 {[%clk 0:01:59]} 21... bxc4 {[%clk 0:02:23.7]} 22.
Ne4 {[%clk 0:01:45.4]} 22... Nd7 {[%clk 0:02:06]} 23. Nd6 {[%clk 0:01:44.1]}
23... c5 {[%clk 0:01:56.9]} 24. d5 {[%clk 0:01:38]} 24... Ne5 {[%clk 0:01:57.3]}
25. Rfe3 {[%clk 0:01:34.2]} 25... Rad8 {[%clk 0:01:51.3]} 26. Nb5 {[%clk
0:01:07.7]} 26... Rd7 {[%clk 0:01:50.5]} 27. Nc6 {[%clk 0:01:03.3]} 27... Rxd5
{[%clk 0:01:46.7]} 28. Nc3 {[%clk 0:01:01]} 28... Rd6 {[%clk 0:01:40.6]} 29.
Nxe5 {[%clk 0:01:00.3]} 29... fxe5 {[%clk 0:01:41.7]} 30. Rxe5 {[%clk
0:01:01.5]} 30... Rdf6 {[%clk 0:01:42]} 31. h3 {[%clk 0:01:00.8]} 31... Rf2
{[%clk 0:01:40.3]} 32. Re8 {[%clk 0:00:46.3]} 32... Rxe8 {[%clk 0:01:37]} 33.
Kxf2 {[%clk 0:00:43.3]} 33... Rb8 {[%clk 0:01:30.3]} 34. Na4 {[%clk 0:00:33.6]}
34... Rb5 {[%clk 0:01:24]} 35. Re5 {[%clk 0:00:30.2]} 35... Ra5 {[%clk
0:01:24.5]} 36. Nxc5 {[%clk 0:00:26.8]} 36... Rxa2+ {[%clk 0:01:24.6]} 37. Ke3
{[%clk 0:00:28.1]} 37... Rxg2 {[%clk 0:01:24.4]} 38. Kf4 {[%clk 0:00:24.9]}
38... Rf2+ {[%clk 0:01:11]} 39. Ke3 {[%clk 0:00:17.6]} 39... Re2+ {[%clk
0:01:11.1]} 40. Kd4 {[%clk 0:00:17.6]} 40... Rxe5 {[%clk 0:01:11.7]} 41. Kxe5
{[%clk 0:00:19.1]} 41... Bf1 {[%clk 0:01:08.5]} 42. Kd4 {[%clk 0:00:17.6]} 42...
Bxh3 {[%clk 0:01:05.7]} 43. Kxc4 {[%clk 0:00:18.4]} 43... Kg6 {[%clk 0:01:06.8]}
44. Kd4 {[%clk 0:00:18]} 44... Kg5 {[%clk 0:01:05.5]} 45. Ke3 {[%clk 0:00:18.8]}
45... Bc8 {[%clk 0:01:01.6]} 46. Kf2 {[%clk 0:00:17.9]} 46... Kf5 {[%clk
0:00:58.1]} 47. Ke3 {[%clk 0:00:18.3]} 47... a5 {[%clk 0:00:55.8]} 48. Kf3
{[%clk 0:00:17.8]} 48... Ke5 {[%clk 0:00:51.7]} 49. Ke3 {[%clk 0:00:18.6]} 49...
Kd5 {[%clk 0:00:52]} 50. Nd3 {[%clk 0:00:16.1]} 50... a4 {[%clk 0:00:52.4]} 51.
Nf4+ {[%clk 0:00:15.6]} 51... Kc4 {[%clk 0:00:52.5]} 52. Kd2 {[%clk 0:00:16.7]}
52... Kb3 {[%clk 0:00:48.3]} 53. Kc1 {[%clk 0:00:17.6]} 53... Bf5 {[%clk
0:00:49.1]} 54. Ne2 {[%clk 0:00:18.6]} 54... Be4 {[%clk 0:00:45.7]} 55. Nd4+
{[%clk 0:00:18.4]} 55... Kc3 {[%clk 0:00:43.7]} 56. Nb5+ {[%clk 0:00:18.5]}
56... Kd3 {[%clk 0:00:43.7]} 57. Nd6 {[%clk 0:00:19]} 57... Ke3 {[%clk
0:00:43.3]} 58. Kb2 {[%clk 0:00:18.1]} 58... Kf3 {[%clk 0:00:43.6]} 59. g4
{[%clk 0:00:11.9]} 59... Bg6 {[%clk 0:00:41.8]} 60. Nc4 {[%clk 0:00:10.3]} 60...
Kxg4 {[%clk 0:00:42.3]} 61. Ne5+ {[%clk 0:00:11.2]} 61... Kf5 {[%clk 0:00:43.3]}
62. Nf3 {[%clk 0:00:11.2]} 62... h5 {[%clk 0:00:44.4]} 63. Ka3 {[%clk
0:00:12.3]} 63... Be8 {[%clk 0:00:45.4]} 64. Nd4+ {[%clk 0:00:12.7]} 64... Kg4
{[%clk 0:00:45.2]} 0-1

[Event "*** Titled Tuesday 3|2 Blitz"]
[Site "Chess.com"]
[Date "2017.06.06"]
[Round "9"]
[White "Illingworth"]
[Black "penguingm1"]
[Result "1-0"]
[WhiteElo "2716"]
[BlackElo "2606"]
[TimeControl "180+2"]
[EndTime "15:52:49 PDT"]
[Termination "Illingworth won on time"]

1. d4 {[%clk 0:03:02]} 1... d5 {[%clk 0:02:56.7]} 2. Bf4 {[%clk 0:03:02.5]} 2...
Nf6 {[%clk 0:02:54.3]} 3. e3 {[%clk 0:03:03.4]} 3... e6 {[%clk 0:02:50.5]} 4.
Nf3 {[%clk 0:03:02.3]} 4... c5 {[%clk 0:02:51.2]} 5. c3 {[%clk 0:03:02.8]} 5...
Nc6 {[%clk 0:02:48.7]} 6. Bd3 {[%clk 0:03:02]} 6... Bd6 {[%clk 0:02:48.2]} 7.
Bg3 {[%clk 0:03:00.5]} 7... O-O {[%clk 0:02:48.1]} 8. Nbd2 {[%clk 0:03:01.4]}
8... b6 {[%clk 0:02:48.2]} 9. Qe2 {[%clk 0:03:02.1]} 9... Bb7 {[%clk 0:02:45.8]}
10. Rd1 {[%clk 0:03:02.2]} 10... h6 {[%clk 0:02:44.4]} 11. O-O {[%clk
0:03:01.9]} 11... Re8 {[%clk 0:02:15.6]} 12. Rfe1 {[%clk 0:02:56.6]} 12... Bxg3
{[%clk 0:01:57.9]} 13. hxg3 {[%clk 0:02:58.5]} 13... Qc7 {[%clk 0:01:52.7]} 14.
Bb5 {[%clk 0:02:56.6]} 14... Nd7 {[%clk 0:01:43.8]} 15. e4 {[%clk 0:02:47.3]}
15... a6 {[%clk 0:01:27.1]} 16. Bd3 {[%clk 0:02:39.3]} 16... dxe4 {[%clk
0:01:22.2]} 17. Nxe4 {[%clk 0:02:39]} 17... cxd4 {[%clk 0:01:22.3]} 18. cxd4
{[%clk 0:02:38.8]} 18... Nb4 {[%clk 0:01:15]} 19. Rc1 {[%clk 0:02:38.3]} 19...
Qb8 {[%clk 0:01:15.2]} 20. Bb1 {[%clk 0:02:38.5]} 20... Rd8 {[%clk 0:01:14.4]}
21. Nc3 {[%clk 0:02:32.6]} 21... Nf6 {[%clk 0:01:13.1]} 22. Ne5 {[%clk 0:02:25]}
22... Qd6 {[%clk 0:01:07.7]} 23. Rcd1 {[%clk 0:02:10.6]} 23... Rac8 {[%clk
0:01:03]} 24. a3 {[%clk 0:02:07.6]} 24... Nbd5 {[%clk 0:01:02.3]} 25. Ne4 {[%clk
0:02:06.7]} 25... Qe7 {[%clk 0:01:03.4]} 26. Rc1 {[%clk 0:01:58.4]} 26... Nxe4
{[%clk 0:01:00.1]} 27. Qxe4 {[%clk 0:01:55.6]} 27... Nf6 {[%clk 0:00:57.6]} 28.
Qf4 {[%clk 0:01:51.5]} 28... Rxc1 {[%clk 0:00:52.3]} 29. Rxc1 {[%clk 0:01:53.4]}
29... Qd6 {[%clk 0:00:53.8]} 30. Nc4 {[%clk 0:01:16.3]} 30... Qxd4 {[%clk
0:00:36.7]} 31. Qxd4 {[%clk 0:01:15.2]} 31... Rxd4 {[%clk 0:00:38.5]} 32. Nxb6
{[%clk 0:01:16.5]} 32... Rd2 {[%clk 0:00:36.8]} 33. Nc4 {[%clk 0:01:16.7]} 33...
Rd8 {[%clk 0:00:34.3]} 34. Ne3 {[%clk 0:00:58.9]} 34... Kf8 {[%clk 0:00:30.6]}
35. Kf1 {[%clk 0:00:59.3]} 35... Ke7 {[%clk 0:00:29]} 36. Ke2 {[%clk 0:00:58.4]}
36... a5 {[%clk 0:00:28.5]} 37. Rc5 {[%clk 0:00:56.7]} 37... a4 {[%clk
0:00:25.7]} 38. Bc2 {[%clk 0:00:54.2]} 38... Rb8 {[%clk 0:00:24.6]} 39. Kd1
{[%clk 0:00:37.2]} 39... Nd5 {[%clk 0:00:20.2]} 40. Nc4 {[%clk 0:00:33.8]} 40...
Ba6 {[%clk 0:00:21.2]} 41. Kc1 {[%clk 0:00:34.4]} 41... Bb5 {[%clk 0:00:16.1]}
42. Ne5 {[%clk 0:00:32.7]} 42... Kd6 {[%clk 0:00:15.1]} 43. Rxb5 {[%clk
0:00:32.7]} 43... Rxb5 {[%clk 0:00:14]} 44. Nxf7+ {[%clk 0:00:33.5]} 44... Ke7
{[%clk 0:00:14.8]} 45. Ne5 {[%clk 0:00:33.2]} 45... Nb6 {[%clk 0:00:13.6]} 46.
Nd3 {[%clk 0:00:29.3]} 46... Kd6 {[%clk 0:00:14.2]} 47. Kd2 {[%clk 0:00:30]}
47... g5 {[%clk 0:00:12.8]} 48. f3 {[%clk 0:00:30]} 48... e5 {[%clk 0:00:13.8]}
49. g4 {[%clk 0:00:30.4]} 49... Nd5 {[%clk 0:00:14.2]} 50. Bxa4 {[%clk
0:00:29.2]} 50... Rb8 {[%clk 0:00:15.1]} 51. Bc2 {[%clk 0:00:28.7]} 51... Nf6
{[%clk 0:00:14.5]} 52. b4 {[%clk 0:00:28.8]} 52... e4 {[%clk 0:00:15.3]} 53. Nc5
{[%clk 0:00:29.2]} 53... exf3 {[%clk 0:00:15.2]} 54. gxf3 {[%clk 0:00:31.1]}
54... Ke5 {[%clk 0:00:16.3]} 55. Be4 {[%clk 0:00:30.3]} 55... Kd4 {[%clk
0:00:14.3]} 56. Bd3 {[%clk 0:00:26.6]} 56... Nd5 {[%clk 0:00:10.1]} 57. Nb3+
{[%clk 0:00:20.9]} 57... Ke5 {[%clk 0:00:10.7]} 58. b5 {[%clk 0:00:21.5]} 58...
Kf4 {[%clk 0:00:10.3]} 59. Be4 {[%clk 0:00:21.5]} 59... Nf6 {[%clk 0:00:08.3]}
60. Bc6 {[%clk 0:00:20.7]} 60... h5 {[%clk 0:00:08.3]} 61. gxh5 {[%clk
0:00:20.6]} 61... Nxh5 {[%clk 0:00:09.2]} 62. a4 {[%clk 0:00:21.6]} 62... Rd8+
{[%clk 0:00:09.9]} 63. Kc3 {[%clk 0:00:21.7]} 63... Ng7 {[%clk 0:00:07.6]} 64.
a5 {[%clk 0:00:22.5]} 64... Ne6 {[%clk 0:00:07.7]} 65. a6 {[%clk 0:00:23.2]}
65... Ke5 {[%clk 0:00:07.7]} 66. a7 {[%clk 0:00:23.6]} 66... Kd6 {[%clk
0:00:06]} 67. a8=Q {[%clk 0:00:23.8]} 67... Rxa8 {[%clk 0:00:06.5]} 68. Bxa8
{[%clk 0:00:25.7]} 68... Kc7 {[%clk 0:00:07.4]} 69. Bd5 {[%clk 0:00:25.6]} 69...
Nf4 {[%clk 0:00:07.2]} 70. Kc4 {[%clk 0:00:26.5]} 70... Kb6 {[%clk 0:00:04]} 71.
Be4 {[%clk 0:00:26.9]} 71... Ne6 {[%clk 0:00:02]} 72. Nd4 {[%clk 0:00:27.3]} 1-0

[Event "*** Titled Tuesday 3|2 Blitz"]
[Site "Chess.com"]
[Date "2017.06.06"]
[Round "9"]
[White "H16"]
[Black "anon102030"]
[Result "1-0"]
[WhiteElo "2319"]
[BlackElo "2569"]
[TimeControl "180+2"]
[EndTime "15:53:21 PDT"]
[Termination "H16 won on time"]

1. d4 {[%clk 0:03:02]} 1... Nf6 {[%clk 0:02:59.5]} 2. c4 {[%clk 0:03:02.6]} 2...
e5 {[%clk 0:03:00.6]} 3. dxe5 {[%clk 0:03:01.1]} 3... Ng4 {[%clk 0:03:01.7]} 4.
Nf3 {[%clk 0:03:02.3]} 4... Nc6 {[%clk 0:03:01.1]} 5. e3 {[%clk 0:02:53.5]} 5...
Ngxe5 {[%clk 0:02:58.8]} 6. Be2 {[%clk 0:02:48.2]} 6... g6 {[%clk 0:02:56.9]} 7.
Nxe5 {[%clk 0:02:46]} 7... Nxe5 {[%clk 0:02:57]} 8. O-O {[%clk 0:02:33]} 8...
Bg7 {[%clk 0:02:58]} 9. Nc3 {[%clk 0:02:34.6]} 9... O-O {[%clk 0:02:58.1]} 10.
e4 {[%clk 0:02:25.6]} 10... d6 {[%clk 0:02:55.5]} 11. f4 {[%clk 0:02:24.7]}
11... Nc6 {[%clk 0:02:53.5]} 12. Be3 {[%clk 0:02:25.5]} 12... f5 {[%clk
0:02:51.1]} 13. Bf3 {[%clk 0:02:20.9]} 13... Re8 {[%clk 0:02:48.2]} 14. Rc1
{[%clk 0:02:15.7]} 14... fxe4 {[%clk 0:02:33.5]} 15. Bxe4 {[%clk 0:02:08.3]}
15... Be6 {[%clk 0:02:07.1]} 16. b3 {[%clk 0:02:02.4]} 16... Bf7 {[%clk
0:02:02.1]} 17. Bxc6 {[%clk 0:01:41.5]} 17... Rxe3 {[%clk 0:01:57.1]} 18. Nd5
{[%clk 0:01:26.1]} 18... Re6 {[%clk 0:01:13.5]} 19. Bxb7 {[%clk 0:01:24.9]}
19... Rb8 {[%clk 0:01:14.6]} 20. Bc6 {[%clk 0:01:25]} 20... Be8 {[%clk
0:00:46.2]} 21. Bxe8 {[%clk 0:01:25.1]} 21... Rxe8 {[%clk 0:00:48.1]} 22. Re1
{[%clk 0:01:25.7]} 22... c6 {[%clk 0:00:44.1]} 23. Ne3 {[%clk 0:01:18.7]} 23...
Qb6 {[%clk 0:00:40.6]} 24. c5 {[%clk 0:01:03.2]} 24... dxc5 {[%clk 0:00:41.4]}
25. Nc4 {[%clk 0:00:59.3]} 25... Rxe1+ {[%clk 0:00:31.9]} 26. Qxe1 {[%clk
0:01:00.6]} 26... Qc7 {[%clk 0:00:33.8]} 27. Qe6+ {[%clk 0:00:45.6]} 27... Kh8
{[%clk 0:00:35.1]} 28. Rf1 {[%clk 0:00:16.8]} 28... Rf8 {[%clk 0:00:34.3]} 29.
g3 {[%clk 0:00:17.9]} 29... Rd8 {[%clk 0:00:30.5]} 30. f5 {[%clk 0:00:15.3]}
30... gxf5 {[%clk 0:00:29.9]} 31. Qxf5 {[%clk 0:00:15.7]} 31... Qe7 {[%clk
0:00:27.1]} 32. Qf7 {[%clk 0:00:14.2]} 32... Qe4 {[%clk 0:00:21.5]} 33. Qf3
{[%clk 0:00:12.2]} 33... Qd4+ {[%clk 0:00:18.7]} 34. Kg2 {[%clk 0:00:12]} 34...
Qd5 {[%clk 0:00:15.3]} 35. Ne3 {[%clk 0:00:09]} 35... Qd2+ {[%clk 0:00:14.6]}
36. Rf2 {[%clk 0:00:09.9]} 36... Qd3 {[%clk 0:00:15.9]} 37. Nf5 {[%clk
0:00:10.7]} 37... Qxf3+ {[%clk 0:00:15]} 38. Kxf3 {[%clk 0:00:11.3]} 38... Bd4
{[%clk 0:00:13.8]} 39. Rc2 {[%clk 0:00:12.3]} 39... Rf8 {[%clk 0:00:11.4]} 40.
Ke4 {[%clk 0:00:13.4]} 40... Re8+ {[%clk 0:00:11.3]} 41. Kd3 {[%clk 0:00:14.5]}
41... Bg1 {[%clk 0:00:11.8]} 42. h4 {[%clk 0:00:09.6]} 42... Re5 {[%clk
0:00:13.2]} 43. Nd6 {[%clk 0:00:08.4]} 43... Re3+ {[%clk 0:00:13.9]} 44. Kd2
{[%clk 0:00:03.7]} 44... Rxg3 {[%clk 0:00:15.8]} 45. Ne4 {[%clk 0:00:05]} 45...
Rg4 {[%clk 0:00:12.9]} 46. Kd3 {[%clk 0:00:04.2]} 46... Rxh4 {[%clk 0:00:08.5]}
47. Nxc5 {[%clk 0:00:03.1]} 47... Rh3+ {[%clk 0:00:08.3]} 48. Ke4 {[%clk
0:00:04]} 48... h5 {[%clk 0:00:08.2]} 49. Ne6 {[%clk 0:00:04.6]} 49... Re3+
{[%clk 0:00:09.3]} 50. Kf5 {[%clk 0:00:05.5]} 50... Kh7 {[%clk 0:00:09]} 51.
Rxc6 {[%clk 0:00:06]} 51... Rf3+ {[%clk 0:00:07.3]} 52. Kg5 {[%clk 0:00:07.1]}
52... h4 {[%clk 0:00:07.2]} 53. Kxh4 {[%clk 0:00:07.1]} 53... Rf2 {[%clk
0:00:06.3]} 54. Rc7+ {[%clk 0:00:07.3]} 54... Kg6 {[%clk 0:00:06.3]} 55. a4
{[%clk 0:00:09.2]} 55... Rb2 {[%clk 0:00:06.4]} 56. Rb7 {[%clk 0:00:09.1]} 56...
Kf5 {[%clk 0:00:06.6]} 57. Nc7 {[%clk 0:00:09.6]} 57... Rg2 {[%clk 0:00:05.6]}
58. Kh3 {[%clk 0:00:10.4]} 58... Rg7 {[%clk 0:00:05.9]} 59. Rb5+ {[%clk
0:00:11]} 59... Ke4 {[%clk 0:00:07.3]} 60. Ne6 {[%clk 0:00:11.4]} 60... Rg8
{[%clk 0:00:07.9]} 61. Nc5+ {[%clk 0:00:12]} 61... Kf3 {[%clk 0:00:07.4]} 62.
Kh4 {[%clk 0:00:10.8]} 62... Be3 {[%clk 0:00:06.5]} 63. Ne6 {[%clk 0:00:09.7]}
63... Rh8+ {[%clk 0:00:06.1]} 64. Rh5 {[%clk 0:00:10.6]} 64... Rb8 {[%clk
0:00:04.9]} 65. Nc5 {[%clk 0:00:07.7]} 65... Bxc5 {[%clk 0:00:02.7]} 66. Rxc5
{[%clk 0:00:09.6]} 66... Rb4+ {[%clk 0:00:03.6]} 67. Kg5 {[%clk 0:00:09.4]}
67... Rxb3 {[%clk 0:00:05.5]} 68. Ra5 {[%clk 0:00:10.6]} 68... Rb7 {[%clk
0:00:05.7]} 69. Kf5 {[%clk 0:00:11.9]} 69... Ke3 {[%clk 0:00:07.1]} 70. Ke5
{[%clk 0:00:13.3]} 70... Kd3 {[%clk 0:00:04.1]} 71. Kd5 {[%clk 0:00:14.6]} 71...
Kc3 {[%clk 0:00:05.3]} 72. Rb5 {[%clk 0:00:05.9]} 72... Rc7 {[%clk 0:00:04]} 73.
Kd6 {[%clk 0:00:06.4]} 73... Rh7 {[%clk 0:00:04.4]} 74. a5 {[%clk 0:00:06.5]}
74... Kc4 {[%clk 0:00:04.7]} 75. Rg5 {[%clk 0:00:07.4]} 75... Kb4 {[%clk
0:00:03.3]} 76. Kc6 {[%clk 0:00:08.6]} 76... Rh6+ {[%clk 0:00:04.2]} 77. Kb7
{[%clk 0:00:09.9]} 77... Rh7+ {[%clk 0:00:05.8]} 78. Ka8 {[%clk 0:00:11.2]}
78... Ka4 {[%clk 0:00:06.5]} 79. a6 {[%clk 0:00:12.1]} 79... Kb4 {[%clk
0:00:07.4]} 80. Rf5 {[%clk 0:00:13.4]} 80... Ka4 {[%clk 0:00:08.2]} 81. Kb8
{[%clk 0:00:14.7]} 81... Kb4 {[%clk 0:00:09]} 82. Re5 {[%clk 0:00:15.9]} 82...
Ka4 {[%clk 0:00:09.4]} 83. Rc5 {[%clk 0:00:17.1]} 83... Kb4 {[%clk 0:00:09.6]}
84. Rc7 {[%clk 0:00:18]} 84... Rh8+ {[%clk 0:00:07.6]} 85. Kxa7 {[%clk
0:00:18.5]} 85... Kb5 {[%clk 0:00:09.1]} 86. Kb7 {[%clk 0:00:19.6]} 86... Rh6
{[%clk 0:00:07.2]} 87. a7 {[%clk 0:00:19.7]} 87... Rb6+ {[%clk 0:00:07.9]} 88.
Kc8 {[%clk 0:00:21]} 88... Ra6 {[%clk 0:00:08.3]} 89. Kb8 {[%clk 0:00:22.2]}
89... Kb6 {[%clk 0:00:07.2]} 90. Rb7+ {[%clk 0:00:23.4]} 90... Kc6 {[%clk
0:00:08.1]} 91. a8=Q {[%clk 0:00:24.8]} 1-0

[Event "*** Titled Tuesday 3|2 Blitz"]
[Site "Chess.com"]
[Date "2017.06.06"]
[Round "9"]
[White "Gordima"]
[Black "Journey_to_GrandMaster_YT"]
[Result "0-1"]
[WhiteElo "2520"]
[BlackElo "2358"]
[TimeControl "180+2"]
[EndTime "15:53:39 PDT"]
[Termination "Journey_to_GrandMaster_YT won by checkmate"]

1. Nf3 {[%clk 0:03:02]} 1... d6 {[%clk 0:03:01.4]} 2. c4 {[%clk 0:03:03.3]} 2...
Nf6 {[%clk 0:03:02.5]} 3. Nc3 {[%clk 0:03:04.5]} 3... Nbd7 {[%clk 0:03:03.5]} 4.
g3 {[%clk 0:03:05.7]} 4... e5 {[%clk 0:03:04.9]} 5. Bg2 {[%clk 0:03:07.1]} 5...
Be7 {[%clk 0:03:06.3]} 6. O-O {[%clk 0:03:08.5]} 6... O-O {[%clk 0:03:07.8]} 7.
b4 {[%clk 0:03:10]} 7... c6 {[%clk 0:03:07.9]} 8. b5 {[%clk 0:03:09.3]} 8... d5
{[%clk 0:02:54.2]} 9. bxc6 {[%clk 0:03:08.3]} 9... bxc6 {[%clk 0:02:56.1]} 10.
cxd5 {[%clk 0:02:40.8]} 10... cxd5 {[%clk 0:02:55.9]} 11. d3 {[%clk 0:02:38]}
11... Rb8 {[%clk 0:02:32.8]} 12. Bg5 {[%clk 0:02:33.9]} 12... Qa5 {[%clk
0:02:26.2]} 13. Bd2 {[%clk 0:02:05.6]} 13... Qa3 {[%clk 0:02:18.3]} 14. Nh4
{[%clk 0:02:01]} 14... Ba6 {[%clk 0:02:07.4]} 15. Nxd5 {[%clk 0:01:58.5]} 15...
Nxd5 {[%clk 0:02:07.3]} 16. Bxd5 {[%clk 0:02:00.4]} 16... Bxh4 {[%clk 0:02:08]}
17. gxh4 {[%clk 0:02:01.2]} 17... Nf6 {[%clk 0:02:05.6]} 18. Bb3 {[%clk
0:01:53.9]} 18... e4 {[%clk 0:02:03.5]} 19. Bg5 {[%clk 0:01:32.5]} 19... exd3
{[%clk 0:01:53.6]} 20. exd3 {[%clk 0:01:32.7]} 20... Qd6 {[%clk 0:01:49.3]} 21.
Re1 {[%clk 0:01:31]} 21... h6 {[%clk 0:01:49]} 22. Be3 {[%clk 0:01:22.5]} 22...
Bxd3 {[%clk 0:01:13.8]} 23. Bxa7 {[%clk 0:01:16.6]} 23... Rb4 {[%clk 0:01:12.2]}
24. Re3 {[%clk 0:01:07.8]} 24... Rxh4 {[%clk 0:00:46.1]} 25. Rxd3 {[%clk
0:00:59.1]} 25... Qxh2+ {[%clk 0:00:46.1]} 26. Kf1 {[%clk 0:01:00.5]} 26... Re8
{[%clk 0:00:31.2]} 27. Re3 {[%clk 0:00:48.1]} 27... Ne4 {[%clk 0:00:27.4]} 28.
Qf3 {[%clk 0:00:33.1]} 28... Nd2+ {[%clk 0:00:24.3]} 29. Ke2 {[%clk 0:00:34.1]}
29... Nxf3 {[%clk 0:00:24.1]} 30. Rxe8+ {[%clk 0:00:34.3]} 30... Kh7 {[%clk
0:00:23.7]} 31. Kxf3 {[%clk 0:00:33.2]} 31... Rf4+ {[%clk 0:00:21.5]} 32. Ke2
{[%clk 0:00:33.8]} 32... Qh5+ {[%clk 0:00:20.7]} 33. Kd2 {[%clk 0:00:31.1]}
33... Qa5+ {[%clk 0:00:21.4]} 34. Ke3 {[%clk 0:00:27.2]} 34... Rb4 {[%clk
0:00:08.3]} 35. Bd4 {[%clk 0:00:04.3]} 35... Qg5+ {[%clk 0:00:08.7]} 36. Kd3
{[%clk 0:00:04]} 36... Qf4 {[%clk 0:00:04.3]} 37. Be3 {[%clk 0:00:03.8]} 37...
Qd6+ {[%clk 0:00:05.3]} 38. Ke2 {[%clk 0:00:04.7]} 38... Qa6+ {[%clk 0:00:05.6]}
39. Kd2 {[%clk 0:00:03.1]} 39... Qd6+ {[%clk 0:00:05.9]} 40. Kc3 {[%clk
0:00:03.5]} 40... Rb7 {[%clk 0:00:05.4]} 41. Rc1 {[%clk 0:00:03.1]} 41... Rc7+
{[%clk 0:00:06.3]} 42. Kb2 {[%clk 0:00:03.5]} 42... Qf6+ {[%clk 0:00:06.6]} 43.
Kb1 {[%clk 0:00:03.4]} 43... Rb7 {[%clk 0:00:04.8]} 44. Rec8 {[%clk 0:00:03]}
44... Qf5+ {[%clk 0:00:05.1]} 45. R8c2 {[%clk 0:00:04.4]} 45... h5 {[%clk
0:00:04.7]} 46. Kb2 {[%clk 0:00:05.7]} 46... g6 {[%clk 0:00:05.9]} 47. Rc5
{[%clk 0:00:07.1]} 47... Qf6+ {[%clk 0:00:06.4]} 48. R1c3 {[%clk 0:00:08.5]}
48... h4 {[%clk 0:00:07.1]} 49. Rc4 {[%clk 0:00:05]} 49... g5 {[%clk 0:00:07.9]}
50. Bd4 {[%clk 0:00:06.2]} 50... Qf5 {[%clk 0:00:07.4]} 51. Rc5 {[%clk
0:00:05.2]} 51... Qg4 {[%clk 0:00:07.4]} 52. R3c4 {[%clk 0:00:05.8]} 52... h3
{[%clk 0:00:07.9]} 53. Be5 {[%clk 0:00:03.9]} 53... Qe2+ {[%clk 0:00:08.3]} 54.
Ka3 {[%clk 0:00:05]} 54... Qxf2 {[%clk 0:00:08.5]} 55. Bc2+ {[%clk 0:00:06.3]}
55... Kh6 {[%clk 0:00:08.9]} 56. Rc6+ {[%clk 0:00:05]} 56... Kh5 {[%clk
0:00:08.5]} 57. Bd1+ {[%clk 0:00:06]} 57... g4 {[%clk 0:00:09.9]} 58. Bxg4+
{[%clk 0:00:06.9]} 58... Kg5 {[%clk 0:00:11.2]} 59. Bd1 {[%clk 0:00:05.7]} 59...
Qa7+ {[%clk 0:00:08.1]} 60. Ra4 {[%clk 0:00:04.3]} 60... Qe3+ {[%clk 0:00:09.2]}
61. Bb3 {[%clk 0:00:03.2]} 61... Qxe5 {[%clk 0:00:09.8]} 62. Rac4 {[%clk
0:00:03.7]} 62... f5 {[%clk 0:00:10.6]} 63. R6c5 {[%clk 0:00:03.9]} 63... Ra7+
{[%clk 0:00:11.7]} 64. Kb4 {[%clk 0:00:04.6]} 64... Qe1+ {[%clk 0:00:12.8]} 65.
Kb5 {[%clk 0:00:05.5]} 65... Rb7+ {[%clk 0:00:13.6]} 66. Kc6 {[%clk 0:00:06.6]}
66... Rxb3 {[%clk 0:00:14.6]} 67. axb3 {[%clk 0:00:07.2]} 67... h2 {[%clk
0:00:16.5]} 68. b4 {[%clk 0:00:04.7]} 68... h1=Q+ {[%clk 0:00:17.5]} 69. Kb6
{[%clk 0:00:06]} 69... Qe6+ {[%clk 0:00:17.6]} 70. Rc6 {[%clk 0:00:05.9]} 70...
Qg1+ {[%clk 0:00:17.7]} 71. Kb7 {[%clk 0:00:06.2]} 71... Qd5 {[%clk 0:00:17.8]}
72. Rc5 {[%clk 0:00:05.9]} 72... Qgxc5 {[%clk 0:00:14.9]} 73. bxc5 {[%clk
0:00:06.5]} 73... f4 {[%clk 0:00:16.3]} 74. Kb6 {[%clk 0:00:07.2]} 74... f3
{[%clk 0:00:17.5]} 75. Rd6 {[%clk 0:00:08.2]} 75... Qb3+ {[%clk 0:00:18.7]} 76.
Kc7 {[%clk 0:00:08.8]} 76... f2 {[%clk 0:00:20]} 77. c6 {[%clk 0:00:08.4]} 77...
f1=Q {[%clk 0:00:20]} 78. Kd7 {[%clk 0:00:09.6]} 78... Qff7+ {[%clk 0:00:20.5]}
79. Kc8 {[%clk 0:00:09.9]} 79... Qb6 {[%clk 0:00:20.4]} 80. c7 {[%clk
0:00:10.5]} 80... Qbxc7# {[%clk 0:00:21.3]} 0-1

[Event "*** Titled Tuesday 3|2 Blitz"]
[Site "Chess.com"]
[Date "2017.06.06"]
[Round "10"]
[White "AllStarShark"]
[Black "FearlessKing64"]
[Result "1-0"]
[WhiteElo "2291"]
[BlackElo "2138"]
[TimeControl "180+2"]
[EndTime "15:59:11 PDT"]
[Termination "AllStarShark won by resignation"]

1. d4 {[%clk 0:03:02]} 1... Nf6 {[%clk 0:02:59.3]} 2. Bg5 {[%clk 0:03:01.9]}
2... d5 {[%clk 0:02:59.9]} 3. Bxf6 {[%clk 0:03:00.7]} 3... exf6 {[%clk
0:03:01.8]} 4. e3 {[%clk 0:03:00.3]} 4... Bd6 {[%clk 0:03:02.4]} 5. g3 {[%clk
0:03:01.4]} 5... O-O {[%clk 0:03:03.5]} 6. Bg2 {[%clk 0:03:02.9]} 6... Re8
{[%clk 0:03:03.9]} 7. Ne2 {[%clk 0:03:04]} 7... c6 {[%clk 0:03:04.3]} 8. O-O
{[%clk 0:03:04.5]} 8... Bg4 {[%clk 0:03:01]} 9. b3 {[%clk 0:02:59.6]} 9... Qb6
{[%clk 0:03:00.1]} 10. c4 {[%clk 0:02:55.8]} 10... Bxe2 {[%clk 0:02:59.9]} 11.
Qxe2 {[%clk 0:02:55.5]} 11... Qxd4 {[%clk 0:03:01]} 12. exd4 {[%clk 0:02:49.3]}
12... Rxe2 {[%clk 0:03:00.8]} 13. cxd5 {[%clk 0:02:50.4]} 13... cxd5 {[%clk
0:02:47]} 14. Bxd5 {[%clk 0:02:52.2]} 14... Nc6 {[%clk 0:02:47.8]} 15. Nc3
{[%clk 0:02:48.5]} 15... Rc2 {[%clk 0:02:41.5]} 16. Bxc6 {[%clk 0:02:42.5]}
16... bxc6 {[%clk 0:02:36.4]} 17. Rac1 {[%clk 0:02:42.9]} 17... Rb2 {[%clk
0:02:21.3]} 18. Na4 {[%clk 0:02:22.4]} 18... Rxa2 {[%clk 0:02:19.1]} 19. Rxc6
{[%clk 0:02:23.9]} 19... Bf8 {[%clk 0:02:17.6]} 20. Rd1 {[%clk 0:02:21.1]} 20...
g6 {[%clk 0:02:08.9]} 21. d5 {[%clk 0:02:21.1]} 21... Rd8 {[%clk 0:02:09.3]} 22.
d6 {[%clk 0:02:18.8]} 22... Re2 {[%clk 0:01:56.7]} 23. d7 {[%clk 0:02:16.2]}
23... Kg7 {[%clk 0:01:34.8]} 24. Kg2 {[%clk 0:02:09.6]} 24... Re7 {[%clk
0:01:27.9]} 25. Rc7 {[%clk 0:02:10.2]} 25... a6 {[%clk 0:01:23.2]} 26. Nc5
{[%clk 0:02:04.1]} 26... Re2 {[%clk 0:00:58.5]} 27. Nb7 {[%clk 0:02:02.6]} 1-0